fUST/lending_fUST_20250103
["ID","MTS","AMOUNT","RATE_DAILY","PERIOD"]
[347474617,1735849841006,-197.55891307,0.00019726,3]
[347474618,1735849841015,-500.0,0.00019726,3]
[347474619,1735849841024,-645.79,0.00019726,3]
[347474620,1735849841033,-500.0,0.00019726,3]
[347474621,1735849841043,-500.0,0.00019726,3]
[347474622,1735849841052,-1266.58,0.00019726,3]
[347474623,1735849841062,-500.0,0.00019726,3]
[347474624,1735849841071,-500.0,0.00019726,3]
[347474625,1735849841080,-3467.47,0.00019726,3]
[347474626,1735849841089,-499.33397185,0.00019726,3]
[347474627,1735849841099,-500.0,0.00019726,3]
[347474628,1735849841108,-739.64,0.00019726,3]
[347474629,1735849841118,-500.0,0.00019726,3]
[347474630,1735849841128,-500.0,0.00019726,3]
[347474631,1735849841137,-516.84,0.00019726,3]
[347474632,1735849841146,-500.0,0.00019726,3]
[347474633,1735849841157,-500.0,0.00019726,3]
[347474635,1735849841166,-500.0,0.00019726,3]
[347474636,1735849841178,-550.62,0.00019726,3]
[347474637,1735849841187,-2869.21,0.00019726,3]
[347474638,1735849841197,-633.84,0.00019726,3]
[347474639,1735849841206,-500.0,0.00019726,3]
[347474640,1735849841215,-3145.32,0.00019726,3]
[347474641,1735849841224,-500.0,0.00019726,3]
[347474642,1735849841233,-1526.25,0.00019726,3]
[347474643,1735849841242,-500.0,0.00019726,3]
[347474644,1735849841251,-527.95,0.00019726,3]
[347474645,1735849841261,-500.0,0.00019726,3]
[347474646,1735849841271,-500.0,0.00019726,3]
[347474647,1735849841280,-500.0,0.00019726,3]
[347474648,1735849841289,-585.23,0.00019726,2]
[347474649,1735849841298,-500.0,0.00019726,3]
[347474650,1735849841307,-932.93,0.00019726,3]
[347474651,1735849841316,-500.0,0.00019726,3]
[347474652,1735849841325,-500.0,0.00019726,3]
[347474653,1735849841334,-592.85,0.00019726,3]
[347474654,1735849841343,-166.64,0.00019726,3]
[347474655,1735849841352,-962.17,0.00019726,3]
[347474656,1735849841361,-545.85,0.00019726,3]
[347474657,1735849841370,-500.0,0.00019726,3]
[347474658,1735849841380,-500.0,0.00019726,3]
[347474659,1735849841389,-1598.34,0.00019726,3]
[347474660,1735849841398,-500.0,0.00019726,3]
[347474661,1735849841407,-500.0,0.00019726,3]
[347474662,1735849841417,-1173.72,0.00019726,3]
[347474663,1735849841427,-2064.1,0.00019726,3]
[347474664,1735849841437,-13779.94,0.00019726,3]
[347474665,1735849841446,-306.0,0.00019863,2]
[347474666,1735849841455,-11058.85273596,0.000199,2]
[347474667,1735849841464,-500.0,0.00019998,3]
[347474668,1735849841473,-500.0,0.0002,3]
[347474669,1735849841482,-500.0,0.0002,3]
[347474670,1735849841491,-789.04,0.0002,3]
[347474671,1735849841501,-500.0,0.0002,3]
[347474672,1735849841510,-645.79,0.0002,3]
[347474673,1735849841523,-500.0,0.0002,3]
[347474674,1735849841532,-500.0,0.0002,3]
[347474675,1735849841541,-1266.58,0.0002,3]
[347474676,1735849841550,-500.0,0.0002,3]
[347474677,1735849841559,-500.0,0.0002,3]
[347474678,1735849841568,-3467.47,0.0002,3]
[347474679,1735849841577,-500.0,0.0002,3]
[347474680,1735849841586,-739.64,0.0002,3]
[347474681,1735849841595,-500.0,0.0002,3]
[347474682,1735849841604,-500.0,0.0002,3]
[347474683,1735849841613,-516.84,0.0002,3]
[347474684,1735849841623,-500.0,0.0002,3]
[347474685,1735849841632,-500.0,0.0002,3]
[347474686,1735849841640,-500.0,0.0002,3]
[347474687,1735849841649,-550.62,0.0002,3]
[347474688,1735849841662,-2869.21,0.0002,3]
[347474689,1735849841671,-633.84,0.0002,3]
[347474690,1735849841680,-500.0,0.0002,3]
[347474691,1735849841689,-3145.32,0.0002,3]
[347474692,1735849841698,-500.0,0.0002,3]
[347474693,1735849841707,-1526.25,0.0002,3]
[347474694,1735849841716,-500.0,0.0002,3]
[347474695,1735849841725,-527.95,0.0002,3]
[347474696,1735849841734,-500.0,0.0002,3]
[347474697,1735849841743,-500.0,0.0002,3]
[347474698,1735849841752,-585.23,0.0002,2]
[347474699,1735849841761,-500.0,0.0002,3]
[347474700,1735849841769,-932.93,0.0002,3]
[347474701,1735849841778,-381.56431933,0.0002,3]
[347474702,1735849841787,-500.0,0.0002,3]
[347474703,1735849841796,-592.85,0.0002,3]
[347474704,1735849841805,-962.17,0.0002,3]
[347474705,1735849841814,-545.85,0.0002,3]
[347474706,1735849841823,-500.0,0.0002,3]
[347474707,1735849841831,-339.34,0.0002,3]
[347474708,1735849841840,-1598.34,0.0002,3]
[347474709,1735849841849,-500.0,0.0002,3]
[347474710,1735849841858,-500.0,0.0002,3]
[347474711,1735849841867,-1173.72,0.0002,3]
[347474712,1735849841876,-2064.1,0.0002,3]
[347474713,1735849841885,-13779.94,0.0002,3]
[347474714,1735849841894,-152.54,0.00020029,2]
[347474715,1735849841903,-500.0,0.00020057,3]
[347474716,1735849841914,-11058.85273591,0.00020058,2]
[347474717,1735849841925,-935.95561979,0.00020076,2]
[347474718,1735849841934,-11665.95116444,0.00020128,2]
[347474719,1735849841943,-3451.61423623,0.000202,2]
[347474720,1735849841952,-3451.6142362,0.000202,2]
[347474721,1735849841961,-3451.6142362,0.000202,2]
[347474722,1735849841970,-3451.6142362,0.000202,2]
[347474723,1735849841978,-10846.51702306,0.000202,2]
[347474724,1735849841987,-10846.51702306,0.000202,2]
[347474725,1735849841996,-10846.51702306,0.000202,2]
[347474726,1735849842005,-10846.51702306,0.000202,2]
[347474727,1735849842015,-194.99,0.00020209,2]
[347474728,1735849842024,-11058.85273591,0.00020216,2]
[347474729,1735849842033,-500.0,0.00020272,3]
[347474730,1735849842042,-500.0,0.00020273,3]
[347474731,1735849842051,-500.0,0.00020273,3]
[347474732,1735849842060,-789.04,0.00020273,3]
[347474733,1735849842069,-500.0,0.00020273,3]
[347474734,1735849842079,-645.79,0.00020273,3]
[347474735,1735849842088,-500.0,0.00020273,3]
[347474736,1735849842097,-500.0,0.00020273,3]
[347474737,1735849842106,-1266.58,0.00020273,3]
[347474738,1735849842115,-500.0,0.00020273,3]
[347474739,1735849842124,-500.0,0.00020273,3]
[347474740,1735849842133,-3467.47,0.00020273,3]
[347474741,1735849842142,-433.0,0.00020273,3]
[347474742,1735849842240,-739.64,0.00020273,3]
[347474743,1735849842262,-500.0,0.00020273,3]
[347474744,1735849842272,-500.0,0.00020273,3]
[347474745,1735849842281,-516.84,0.00020273,3]
[347474746,1735849842290,-500.0,0.00020273,3]
[347474747,1735849842300,-500.0,0.00020273,3]
[347474748,1735849842308,-500.0,0.00020273,3]
[347474749,1735849842318,-550.62,0.00020273,3]
[347474750,1735849842327,-2869.21,0.00020273,3]
[347474751,1735849842336,-633.84,0.00020273,3]
[347474752,1735849842346,-500.0,0.00020273,3]
[347474753,1735849842355,-3145.32,0.00020273,3]
[347474754,1735849842364,-500.0,0.00020273,3]
[347474755,1735849842372,-1526.25,0.00020273,3]
[347474756,1735849842381,-212.3175872,0.00020273,3]
[347474757,1735849842390,-527.95,0.00020273,3]
[347474758,1735849842399,-500.0,0.00020273,3]
[347474759,1735849842410,-500.0,0.00020273,3]
[347474760,1735849842420,-499.0,0.00020273,2]
[347474761,1735849842429,-585.23,0.00020273,2]
[347474762,1735849842440,-500.0,0.00020273,3]
[347474763,1735849842449,-932.93,0.00020273,3]
[347474764,1735849842458,-174.20131226,0.00020273,3]
[347474765,1735849842467,-592.85,0.00020273,3]
[347474766,1735849842476,-962.17,0.00020273,3]
[347474767,1735849842486,-545.85,0.00020273,3]
[347474768,1735849842494,-500.0,0.00020273,3]
[347474769,1735849842504,-1598.34,0.00020273,3]
[347474770,1735849842514,-500.0,0.00020273,3]
[347474771,1735849842528,-500.0,0.00020273,3]
[347474772,1735849842537,-1173.72,0.00020273,3]
[347474773,1735849842546,-2064.1,0.00020273,3]
[347474774,1735849842555,-13779.94,0.00020273,3]
[347474775,1735849842565,-156.3,0.00020296,5]
[347474776,1735849842574,-11665.95116445,0.00020355,2]
[347474777,1735849842583,-500.0,0.00020373,3]
[347474778,1735849842597,-11058.85273591,0.00020374,2]
[347474779,1735849842607,-1000.543658,0.00020374,2]
[347474780,1735849842616,-1000.543658,0.00020374,2]
[347474781,1735849842626,-153.0,0.00020384,2]
[347474782,1735849842635,-587.0,0.00020412,2]
[347474783,1735849842644,-935.95561979,0.00020438,2]
[347474784,1735849842653,-454.36370906,0.00020444,4]
[347474785,1735849842663,-400.0,0.00020447,2]
[347474786,1735849842672,-195.0,0.00020487,2]
[347474787,1735849842681,-359.51163031,0.00020499,2]
[347474788,1735849842691,-500.0,0.00020499,2]
[347474789,1735849842700,-373.08824713,0.00020499,2]
[347474790,1735849842709,-500.0,0.00020499,2]
[347474791,1735849842718,-616.13333607,0.00020499,2]
[347474792,1735849842727,-500.0,0.00020499,2]
[347474793,1735849842737,-500.0,0.00020499,2]
[347474794,1735849842746,-500.0,0.00020499,2]
[347474795,1735849842755,-150.0,0.000205,2]
[347474796,1735849842764,-150.0,0.000205,2]
[347474797,1735849842773,-151.0,0.000205,3]
[347474798,1735849842783,-7448.0021065,0.000205,2]
[347474799,1735849842792,-172792.68879458,0.000205,2]
[347474800,1735849842801,-160.352635,0.00020521,2]
[347474801,1735849842810,-11058.85273591,0.00020532,2]
[347474802,1735849842820,-151.0,0.00020546,2]
[347474803,1735849842829,-500.0,0.00020546,3]
[347474805,1735849842839,-500.0,0.00020546,3]
[347474806,1735849842848,-47567.88706329,0.00020547,2]
[347474811,1735849842970,-1381.38795626,0.00018986,2]
[347474812,1735849842986,-155.23772232,0.00018986,2]
[347474813,1735849842996,-3150.61033544,0.00020547,2]
[347474827,1735849843506,-500.0,0.00019178,2]
[347474828,1735849843516,-315.44877714,0.00020547,2]
[347474829,1735849843529,-750.648911,0.00020547,2]
[347474851,1735849846464,-170.911887,0.00019178,2]
[347474852,1735849846473,-155.382881,0.00020374,2]
[347474853,1735849846482,-45.05724745,0.00020547,2]
[347474855,1735849897436,1778.0,0.00025,120]
[347474877,1735850669053,400.0,0.00013973,2]
[347474886,1735850961607,1017.0,0.00025,120]
[347474910,1735851032812,-500.0,0.0001769,2]
[347474911,1735851032822,-300.0,0.00018116,2]
[347474913,1735851032832,-24900.0,0.00018117,2]
[347474914,1735851032842,-500.0,0.00018232,3]
[347474916,1735851032851,-227.195531,0.00018244,2]
[347474918,1735851032861,-2841.76011214,0.00019147,2]
[347474920,1735851032871,-500.0,0.00019173,2]
[347474922,1735851032880,-500.0,0.00019173,2]
[347474924,1735851032890,-347.828,0.00019177,2]
[347474926,1735851032899,-500.0,0.00019177,2]
[347474928,1735851032909,-500.0,0.00019177,2]
[347474929,1735851032918,-500.0,0.00019177,2]
[347474931,1735851032928,-500.0,0.00019177,2]
[347474933,1735851032941,-500.0,0.00019177,2]
[347474934,1735851032950,-500.0,0.00019177,2]
[347474935,1735851032959,-215.31927103,0.00019177,2]
[347474960,1735851038563,-284.68072897,0.00019177,2]
[347474961,1735851038573,-500.0,0.00019177,2]
[347474962,1735851038583,-500.0,0.00019177,2]
[347474963,1735851038593,-500.0,0.00019177,2]
[347474964,1735851038602,-500.0,0.00019177,2]
[347474965,1735851038611,-563.47331362,0.00019177,2]
[347474966,1735851038621,-500.0,0.00019177,2]
[347474967,1735851038630,-396.32028335,0.00019177,2]
[347474968,1735851038641,-500.0,0.00019177,2]
[347474969,1735851038650,-597.56431939,0.00019177,2]
[347474970,1735851038660,-500.0,0.00019178,2]
[347474971,1735851038670,-500.0,0.00019178,2]
[347474972,1735851038679,-546.44239984,0.00019178,2]
[347474973,1735851038688,-500.0,0.00019178,2]
[347474974,1735851038698,-500.0,0.00019178,2]
[347474975,1735851038707,-713.14,0.00019178,2]
[347474976,1735851038717,-500.0,0.00019178,2]
[347474977,1735851038726,-505.63669131,0.00019178,2]
[347474978,1735851038736,-500.0,0.00019178,2]
[347474979,1735851038747,-500.0,0.00019178,2]
[347474980,1735851038756,-500.0,0.00019178,2]
[347474981,1735851038765,-500.0,0.00019178,2]
[347474982,1735851038776,-500.0,0.00019178,2]
[347474983,1735851038785,-506.05334027,0.00019178,2]
[347474984,1735851038794,-590.56354788,0.00019178,2]
[347474985,1735851038803,-500.0,0.00019178,2]
[347474986,1735851038813,-500.0,0.00019178,2]
[347474987,1735851038823,-500.0,0.00019178,2]
[347474988,1735851038833,-500.0,0.00019178,2]
[347474989,1735851038844,-500.0,0.00019178,2]
[347474990,1735851038854,-500.0,0.00019178,2]
[347474991,1735851038864,-500.0,0.00019178,2]
[347474992,1735851038873,-500.0,0.00019178,2]
[347474993,1735851038883,-500.0,0.00019178,2]
[347474994,1735851038892,-500.0,0.00019178,2]
[347474995,1735851038902,-500.0,0.00019178,2]
[347474996,1735851038911,-500.0,0.00019178,2]
[347474997,1735851038920,-500.0,0.00019178,2]
[347474998,1735851038929,-500.0,0.00019178,2]
[347474999,1735851038941,-502.89526421,0.00019178,2]
[347475000,1735851038951,-500.0,0.00019178,2]
[347475001,1735851038961,-500.0,0.00019178,2]
[347475002,1735851038970,-500.0,0.00019178,2]
[347475003,1735851038980,-500.0,0.00019178,2]
[347475004,1735851038992,-500.0,0.00019178,2]
[347475005,1735851039002,-504.03461667,0.00019178,2]
[347475006,1735851039014,-500.0,0.00019178,2]
[347475007,1735851039023,-500.0,0.00019178,2]
[347475008,1735851039033,-500.0,0.00019178,2]
[347475009,1735851039042,-500.0,0.00019178,2]
[347475010,1735851039051,-500.0,0.00019178,2]
[347475011,1735851039060,-550.61831356,0.00019178,2]
[347475012,1735851039070,-500.0,0.00019178,2]
[347475013,1735851039078,-500.0,0.00019178,2]
[347475014,1735851039087,-500.0,0.00019178,2]
[347475015,1735851039096,-500.0,0.00019178,2]
[347475016,1735851039105,-500.0,0.00019178,2]
[347475017,1735851039115,-500.0,0.00019178,2]
[347475018,1735851039125,-500.0,0.00019178,2]
[347475019,1735851039134,-500.0,0.00019178,2]
[347475020,1735851039143,-377.85298173,0.00019178,2]
[347475021,1735851039153,-500.0,0.00019178,2]
[347475022,1735851039163,-500.0,0.00019178,2]
[347475023,1735851039172,-500.0,0.00019178,2]
[347475024,1735851039182,-342.940949,0.00019178,2]
[347475025,1735851039191,-500.0,0.00019178,2]
[347475026,1735851039200,-500.0,0.00019178,2]
[347475027,1735851039209,-500.0,0.00019178,2]
[347475028,1735851039218,-500.0,0.00019178,2]
[347475029,1735851039227,-508.75,0.00019178,2]
[347475030,1735851039239,-500.0,0.00019178,2]
[347475031,1735851039248,-500.0,0.00019178,2]
[347475032,1735851039258,-500.0,0.00019178,2]
[347475033,1735851039267,-500.0,0.00019178,2]
[347475034,1735851039276,-551.92103526,0.00019178,2]
[347475035,1735851039286,-500.0,0.00019178,2]
[347475036,1735851039295,-500.0,0.00019178,2]
[347475037,1735851039305,-503.71804492,0.00019178,2]
[347475038,1735851039314,-500.0,0.00019178,2]
[347475039,1735851039323,-500.0,0.00019178,2]
[347475040,1735851039332,-500.0,0.00019178,2]
[347475041,1735851039342,-167.21207957,0.00019178,2]
[347475042,1735851039351,-641.91,0.00019178,2]
[347475043,1735851039361,-801.15,0.00019178,2]
[347475044,1735851039370,-500.0,0.00019178,2]
[347475045,1735851039379,-500.0,0.00019178,2]
[347475046,1735851039389,-500.0,0.00019178,2]
[347475047,1735851039398,-500.0,0.00019178,2]
[347475048,1735851039407,-517.37682,0.00019178,2]
[347475049,1735851039416,-500.0,0.00019178,2]
[347475050,1735851039426,-500.0,0.00019178,2]
[347475051,1735851039435,-500.0,0.00019178,2]
[347475052,1735851039444,-526.01,0.00019178,2]
[347475053,1735851039453,-500.0,0.00019178,2]
[347475054,1735851039463,-500.0,0.00019178,2]
[347475055,1735851039472,-500.0,0.00019178,2]
[347475056,1735851039481,-500.0,0.00019178,2]
[347475057,1735851039494,-500.0,0.00019178,2]
[347475058,1735851039503,-500.0,0.00019178,2]
[347475059,1735851039513,-500.0,0.00019178,2]
[347475060,1735851039523,-500.0,0.00019178,2]
[347475061,1735851039533,-500.0,0.00019178,2]
[347475062,1735851039543,-500.0,0.00019178,2]
[347475063,1735851039552,-500.0,0.00019178,2]
[347475064,1735851039561,-500.0,0.00019178,2]
[347475065,1735851039571,-500.0,0.00019178,2]
[347475066,1735851039581,-509.87989725,0.00019178,2]
[347475067,1735851039591,-500.0,0.00019178,2]
[347475068,1735851039600,-500.0,0.00019178,2]
[347475069,1735851039609,-500.0,0.00019178,2]
[347475070,1735851039619,-500.0,0.00019178,2]
[347475071,1735851039629,-500.0,0.00019178,2]
[347475072,1735851039638,-500.0,0.00019178,2]
[347475073,1735851039647,-500.0,0.00019178,2]
[347475074,1735851039657,-500.0,0.00019178,2]
[347475075,1735851039666,-500.0,0.00019178,2]
[347475076,1735851039676,-606.48072109,0.00019178,2]
[347475077,1735851039685,-500.0,0.00019178,2]
[347475078,1735851039695,-500.0,0.00019178,2]
[347475079,1735851039704,-500.0,0.00019178,2]
[347475080,1735851039713,-500.0,0.00019178,2]
[347475081,1735851039723,-500.0,0.00019178,2]
[347475082,1735851039733,-500.0,0.00019178,2]
[347475083,1735851039743,-500.0,0.00019178,2]
[347475084,1735851039752,-500.0,0.00019178,2]
[347475085,1735851039762,-500.0,0.00019178,2]
[347475086,1735851039772,-500.0,0.00019178,2]
[347475087,1735851039781,-500.0,0.00019178,2]
[347475088,1735851039791,-500.0,0.00019178,2]
[347475089,1735851039800,-500.0,0.00019178,2]
[347475090,1735851039810,-500.0,0.00019178,2]
[347475091,1735851039819,-500.0,0.00019178,2]
[347475092,1735851039828,-500.0,0.00019178,2]
[347475093,1735851039837,-500.0,0.00019178,2]
[347475094,1735851039846,-577.78168798,0.00019178,2]
[347475095,1735851039856,-500.0,0.00019178,2]
[347475096,1735851039865,-500.0,0.00019178,2]
[347475097,1735851039874,-536.97,0.00019178,2]
[347475098,1735851039883,-500.0,0.00019178,2]
[347475099,1735851039892,-500.0,0.00019178,2]
[347475100,1735851039902,-500.0,0.00019178,2]
[347475101,1735851039911,-500.0,0.00019178,2]
[347475102,1735851039920,-500.0,0.00019178,2]
[347475103,1735851039929,-505.32491721,0.00019178,2]
[347475104,1735851039946,-500.0,0.00019178,2]
[347475105,1735851039955,-500.0,0.00019178,2]
[347475106,1735851039965,-500.0,0.00019178,2]
[347475107,1735851039975,-500.0,0.00019178,2]
[347475108,1735851039987,-500.0,0.00019178,2]
[347475109,1735851039996,-502.8671489,0.00019178,2]
[347475110,1735851040005,-500.0,0.00019178,2]
[347475111,1735851040016,-500.0,0.00019178,2]
[347475112,1735851040026,-500.0,0.00019178,2]
[347475113,1735851040035,-500.0,0.00019178,2]
[347475114,1735851040044,-500.0,0.00019178,2]
[347475115,1735851040053,-500.0,0.00019178,2]
[347475116,1735851040062,-14335.29,0.00019178,2]
[347475118,1735851040071,-500.0,0.00019178,2]
[347475120,1735851040081,-1213.81,0.00019178,2]
[347475121,1735851040090,-500.0,0.00019178,2]
[347475122,1735851040099,-500.0,0.00019178,2]
[347475123,1735851040108,-500.0,0.00019178,2]
[347475124,1735851040117,-169.55554568,0.00019178,2]
[347475125,1735851040127,-498.7019002,0.00019178,2]
[347475126,1735851040136,-500.0,0.00019178,2]
[347475127,1735851040146,-500.0,0.00019178,2]
[347475128,1735851040156,-500.0,0.00019178,2]
[347475129,1735851040166,-500.0,0.00019178,2]
[347475130,1735851040175,-3453.29,0.00019178,2]
[347475131,1735851040184,-500.0,0.00019178,2]
[347475132,1735851040194,-500.0,0.00019178,2]
[347475133,1735851040203,-500.0,0.00019178,2]
[347475134,1735851040212,-500.0,0.00019178,2]
[347475135,1735851040221,-500.0,0.00019178,2]
[347475136,1735851040232,-500.0,0.00019178,2]
[347475137,1735851040243,-683.2,0.00019178,2]
[347475138,1735851040252,-1552.34,0.00019178,2]
[347475139,1735851040262,-633.84,0.00019178,2]
[347475140,1735851040271,-500.0,0.00019178,2]
[347475141,1735851040280,-500.0,0.00019178,2]
[347475142,1735851040289,-503.60343341,0.00019178,2]
[347475143,1735851040299,-500.0,0.00019178,2]
[347475144,1735851040308,-500.0,0.00019178,2]
[347475145,1735851040317,-500.0,0.00019178,2]
[347475146,1735851040327,-500.0,0.00019178,2]
[347475147,1735851040336,-500.0,0.00019178,2]
[347475148,1735851040345,-339.28231209,0.00019178,2]
[347475149,1735851040354,-500.0,0.00019178,2]
[347475150,1735851040363,-500.0,0.00019178,2]
[347475151,1735851040372,-500.0,0.00019178,2]
[347475152,1735851040382,-500.0,0.00019178,2]
[347475153,1735851040391,-500.0,0.00019178,2]
[347475154,1735851040401,-500.0,0.00019178,2]
[347475155,1735851040410,-500.0,0.00019178,2]
[347475156,1735851040419,-500.0,0.00019178,2]
[347475157,1735851040428,-500.0,0.00019178,2]
[347475158,1735851040437,-188.0,0.00019178,2]
[347475159,1735851040447,-500.0,0.00019178,2]
[347475160,1735851040456,-500.0,0.00019178,2]
[347475161,1735851040465,-500.0,0.00019178,2]
[347475162,1735851040475,-548.78,0.00019178,2]
[347475163,1735851040485,-500.0,0.00019178,2]
[347475164,1735851040494,-500.0,0.00019178,2]
[347475165,1735851040503,-500.0,0.00019178,2]
[347475166,1735851040513,-500.0,0.00019178,2]
[347475167,1735851040522,-501.70776864,0.00019178,2]
[347475169,1735851040532,-500.0,0.00019178,2]
[347475170,1735851040541,-500.0,0.00019178,2]
[347475172,1735851040551,-200.0,0.00019178,2]
[347475173,1735851040560,-631.51,0.00019178,2]
[347475175,1735851040569,-500.0,0.00019178,2]
[347475177,1735851040579,-500.0,0.00019178,2]
[347475178,1735851040588,-500.0,0.00019178,2]
[347475180,1735851040597,-633.74037495,0.00019178,2]
[347475181,1735851040607,-500.0,0.00019178,2]
[347475182,1735851040616,-500.0,0.00019178,2]
[347475183,1735851040625,-500.0,0.00019178,2]
[347475184,1735851040635,-500.0,0.00019178,2]
[347475191,1735851040736,-967.16,0.00019178,2]
[347475194,1735851040764,-500.0,0.00019178,2]
[347475195,1735851040773,-2884.33,0.00019178,2]
[347475197,1735851040783,-643.02,0.00019178,2]
[347475198,1735851040792,-500.0,0.00019178,2]
[347475200,1735851040801,-500.0,0.00019178,2]
[347475202,1735851040811,-500.0,0.00019178,2]
[347475204,1735851040820,-500.0,0.00019178,2]
[347475205,1735851040829,-500.0,0.00019178,2]
[347475206,1735851040839,-500.0,0.00019178,2]
[347475207,1735851040849,-503.91869497,0.00019178,2]
[347475208,1735851040859,-500.0,0.00019178,2]
[347475209,1735851040868,-566.68,0.00019178,2]
[347475211,1735851040878,-500.0,0.00019178,2]
[347475213,1735851040888,-500.0,0.00019178,2]
[347475214,1735851040898,-500.0,0.00019178,2]
[347475215,1735851040907,-500.0,0.00019178,2]
[347475216,1735851040917,-500.0,0.00019178,2]
[347475217,1735851040927,-1039.17,0.00019178,2]
[347475218,1735851040939,-500.0,0.00019178,2]
[347475219,1735851040948,-500.0,0.00019178,2]
[347475220,1735851040957,-3385.58,0.00019178,2]
[347475221,1735851040966,-500.0,0.00019178,2]
[347475222,1735851040976,-500.0,0.00019178,2]
[347475223,1735851040986,-500.0,0.00019178,2]
[347475224,1735851040995,-500.0,0.00019178,2]
[347475225,1735851041005,-500.0,0.00019178,2]
[347475226,1735851041014,-500.0,0.00019178,2]
[347475227,1735851041023,-500.0,0.00019178,2]
[347475228,1735851041034,-1666.93,0.00019178,2]
[347475229,1735851041043,-500.0,0.00019178,2]
[347475230,1735851041052,-500.0,0.00019178,2]
[347475231,1735851041062,-500.0,0.00019178,2]
[347475232,1735851041071,-500.0,0.00019178,2]
[347475233,1735851041081,-239.78521782,0.00019178,2]
[347475234,1735851041091,-500.0,0.00019178,2]
[347475235,1735851041100,-1173.72,0.00019178,2]
[347475236,1735851041109,-500.0,0.00019178,2]
[347475237,1735851041119,-513.23,0.00019178,2]
[347475238,1735851041128,-500.0,0.00019178,2]
[347475239,1735851041138,-2064.1,0.00019178,2]
[347475240,1735851041147,-500.0,0.00019178,2]
[347475241,1735851041156,-500.0,0.00019178,2]
[347475242,1735851041166,-500.0,0.00019178,2]
[347475243,1735851041175,-500.0,0.00019178,2]
[347475244,1735851041184,-500.0,0.00019178,2]
[347475245,1735851041193,-501.39596302,0.00019178,2]
[347475246,1735851041202,-500.0,0.00019178,2]
[347475247,1735851041211,-500.0,0.00019178,2]
[347475248,1735851041220,-500.0,0.00019178,2]
[347475249,1735851041229,-500.0,0.00019178,2]
[347475250,1735851041240,-633.57463747,0.00019178,2]
[347475251,1735851041249,-500.0,0.00019178,2]
[347475252,1735851041260,-168.63714,0.00019178,2]
[347475253,1735851041269,-500.0,0.00019451,3]
[347475254,1735851041278,-713.14,0.00019452,3]
[347475255,1735851041287,-500.0,0.00019452,3]
[347475256,1735851041297,-502.31500196,0.00019452,3]
[347475257,1735851041306,-500.0,0.00019452,3]
[347475258,1735851041315,-500.0,0.00019452,3]
[347475259,1735851041324,-500.0,0.00019452,3]
[347475260,1735851041333,-500.0,0.00019452,3]
[347475261,1735851041343,-500.0,0.00019452,3]
[347475262,1735851041352,-500.0,0.00019452,3]
[347475263,1735851041361,-500.0,0.00019452,3]
[347475264,1735851041371,-500.0,0.00019452,3]